fUSD/lending_fUSD_20241123
["ID","MTS","AMOUNT","RATE_DAILY","PERIOD"]
[343070077,1732323061128,-500.0,0.00065999,120]
[343070078,1732323061138,-753.2,0.00065999,120]
[343070079,1732323061147,-500.0,0.00065999,120]
[343070080,1732323061156,-500.0,0.00065999,120]
[343070081,1732323061164,-753.2,0.00065999,120]
[343070082,1732323061173,-500.0,0.00065999,120]
[343070083,1732323061182,-250.69939152,0.00065999,120]
[343070084,1732323061196,-753.2,0.00065999,120]
[343070085,1732323061205,-500.0,0.00065999,120]
[343070086,1732323061299,-753.2,0.00065999,120]
[343070087,1732323061309,-500.0,0.00065999,120]
[343070088,1732323061319,-500.0,0.00065999,120]
[343070089,1732323061330,-753.2,0.00065999,120]
[343070090,1732323061340,-553.65885302,0.00065999,120]
[343070091,1732323061349,-753.2,0.00065999,120]
[343070092,1732323061358,-753.2,0.00065999,120]
[343070093,1732323061368,-753.2,0.00065999,120]
[343070094,1732323061377,-177.02641439,0.00065999,120]
[343070095,1732323061386,-500.0,0.00065999,120]
[343070096,1732323061395,-500.0,0.00065999,120]
[343070097,1732323061404,-500.0,0.00065999,120]
[343070098,1732323061412,-500.0,0.00065999,120]
[343070099,1732323061421,-500.0,0.00065999,120]
[343070100,1732323061430,-500.0,0.00065999,120]
[343070101,1732323061438,-374.20715146,0.00065999,120]
[343070102,1732323061448,-1254.98,0.00065999,120]
[343070103,1732323061457,-1254.98,0.00065999,120]
[343070104,1732323061466,-1254.98,0.00065999,120]
[343070105,1732323061475,-500.0,0.00065999,120]
[343070106,1732323061484,-1254.98,0.00065999,120]
[343070107,1732323061493,-500.0,0.00065999,120]
[343070108,1732323061503,-1254.98,0.00065999,120]
[343070109,1732323061513,-500.0,0.00065999,120]
[343070110,1732323061523,-1254.98,0.00065999,120]
[343070111,1732323061534,-500.0,0.00065999,120]
[343070112,1732323061544,-1254.98,0.00065999,120]
[343070113,1732323061553,-1254.98,0.00065999,120]
[343070114,1732323061563,-1254.98,0.00065999,120]
[343070115,1732323061572,-1254.98,0.00065999,120]
[343070116,1732323061583,-1254.98,0.00065999,120]
[343070117,1732323061593,-1254.98,0.00065999,120]
[343070118,1732323061602,-1255.0718443,0.00065999,120]
[343070119,1732323061612,-1369.8,0.00065999,120]
[343070120,1732323061622,-1369.8,0.00065999,120]
[343070121,1732323061632,-1369.8,0.00065999,120]
[343070122,1732323061642,-1369.8,0.00065999,120]
[343070123,1732323061651,-1369.8,0.00065999,120]
[343070124,1732323061662,-1369.8,0.00065999,120]
[343070125,1732323061672,-1369.8,0.00065999,120]
[343070126,1732323061682,-500.0,0.00065999,120]
[343070127,1732323061692,-1369.8,0.00065999,120]
[343070128,1732323061701,-1369.8,0.00065999,120]
[343070129,1732323061715,-2007.3,0.00065999,120]
[343070130,1732323061725,-1369.8,0.00065999,120]
[343070131,1732323061735,-2007.3,0.00065999,120]
[343070132,1732323061747,-1369.8,0.00065999,120]
[343070133,1732323061757,-2007.3,0.00065999,120]
[343070134,1732323061767,-1369.8,0.00065999,120]
[343070135,1732323061777,-2007.3,0.00065999,120]
[343070136,1732323061787,-1369.8,0.00065999,120]
[343070137,1732323061796,-2007.3,0.00065999,120]
[343070138,1732323061808,-1369.8,0.00065999,120]
[343070139,1732323061817,-2007.3,0.00065999,120]
[343070140,1732323061829,-1369.8,0.00065999,120]
[343070141,1732323061839,-2007.3,0.00065999,120]
[343070142,1732323061849,-1369.8,0.00065999,120]
[343070143,1732323061858,-2007.3,0.00065999,120]
[343070144,1732323061869,-1369.8,0.00065999,120]
[343070145,1732323061879,-2007.3,0.00065999,120]
[343070146,1732323061889,-1369.95,0.00065999,120]
[343070147,1732323061901,-2007.3,0.00065999,120]
[343070148,1732323061911,-2007.3,0.00065999,120]
[343070149,1732323061922,-2007.3,0.00065999,120]
[343070150,1732323061932,-2007.3,0.00065999,120]
[343070151,1732323061942,-2007.3,0.00065999,120]
[343070152,1732323061953,-2007.3,0.00065999,120]
[343070153,1732323061962,-2007.3,0.00065999,120]
[343070154,1732323061972,-2007.3,0.00065999,120]
[343070155,1732323061982,-2007.31660138,0.00065999,120]
[343070156,1732323061991,-671.92,0.00065999,120]
[343070157,1732323062001,-671.92,0.00065999,120]
[343070158,1732323062011,-671.92,0.00065999,120]
[343070159,1732323062020,-671.92,0.00065999,120]
[343070160,1732323062031,-671.92,0.00065999,120]
[343070161,1732323062040,-500.0,0.00065999,120]
[343070162,1732323062051,-671.92,0.00065999,120]
[343070163,1732323062061,-500.0,0.00065999,120]
[343070164,1732323062071,-500.0,0.00065999,120]
[343070165,1732323062084,-671.92,0.00065999,120]
[343070166,1732323062094,-500.0,0.00065999,120]
[343070167,1732323062104,-671.92,0.00065999,120]
[343070168,1732323062114,-500.0,0.00065999,120]
[343070169,1732323062122,-382.34431307,0.00065999,120]
[343070170,1732323062132,-500.0,0.00065999,120]
[343070171,1732323062143,-671.92,0.00065999,120]
[343070172,1732323062153,-500.0,0.00065999,120]
[343070173,1732323062163,-671.92,0.00065999,120]
[343070174,1732323062174,-500.0,0.00065999,120]
[343070175,1732323062184,-671.92,0.00065999,120]
[343070176,1732323062194,-671.92,0.00065999,120]
[343070177,1732323062208,-500.0,0.00065999,120]
[343070178,1732323062218,-500.0,0.00065999,120]
[343070179,1732323062227,-671.92,0.00065999,120]
[343070180,1732323062239,-500.0,0.00065999,120]
[343070181,1732323062248,-500.0,0.00065999,120]
[343070182,1732323062258,-242.72,0.00065999,120]
[343070183,1732323062274,-671.92,0.00065999,120]
[343070184,1732323062286,-500.0,0.00065999,120]
[343070185,1732323062295,-500.0,0.00065999,120]
[343070186,1732323062304,-672.07652016,0.00065999,120]
[343070187,1732323062314,-1427.96,0.00065999,120]
[343070188,1732323062323,-500.0,0.00065999,120]
[343070189,1732323062338,-1427.96,0.00065999,120]
[343070190,1732323062347,-500.0,0.00065999,120]
[343070191,1732323062357,-1427.96,0.00065999,120]
[343070192,1732323062366,-480.97427249,0.00065999,120]
[343070193,1732323062375,-1427.96,0.00065999,120]
[343070194,1732323062385,-1427.96,0.00065999,120]
[343070195,1732323062394,-1427.96,0.00065999,120]
[343070196,1732323062403,-1427.96,0.00065999,120]
[343070197,1732323062412,-1427.96,0.00065999,120]
[343070198,1732323062421,-212.63983927,0.00065999,120]
[343070199,1732323062431,-1427.96,0.00065999,120]
[343070200,1732323062440,-383.46348714,0.00065999,120]
[343070201,1732323062450,-1427.96,0.00065999,120]
[343070202,1732323062459,-1427.96,0.00065999,120]
[343070203,1732323062469,-1427.96,0.00065999,120]
[343070204,1732323062478,-1427.96,0.00065999,120]
[343070205,1732323062488,-1427.96,0.00065999,120]
[343070206,1732323062497,-1427.96,0.00065999,120]
[343070207,1732323062508,-1427.96,0.00065999,120]
[343070208,1732323062517,-1427.96,0.00065999,120]
[343070209,1732323062527,-1428.10383569,0.00065999,120]
[343070210,1732323062537,-300.0,0.00065999,30]
[343070211,1732323062547,-5982.64103095,0.00066,120]
[343070212,1732323062556,-18703387.9786339,0.00066,30]
[343070213,1732323062913,-6929.85436913,0.00066,30]
[343070214,1732323062924,-2393.73927125,0.00066,30]
[343070215,1732323062936,-7435.88291955,0.00066,30]
[343070216,1732323062947,-2734.8759,0.00066,30]
[343070217,1732323062959,-1207.925,0.00066,30]
[343070218,1732323062971,-117136.10873831,0.00066,30]
[343070219,1732323062982,-175147.59371452,0.00066,30]
[343070220,1732323063047,-500.0,0.00065753,120]
[343070221,1732323063057,-500.0,0.00065753,120]
[343070222,1732323063068,-500.0,0.00065753,120]
[343070223,1732323063078,-500.0,0.00065753,120]
[343070224,1732323063096,-500.0,0.00065753,120]
[343070225,1732323063106,-9030.8066,0.00066,30]
[343070226,1732323063119,-2549.0,0.00066,30]
[343070227,1732323063143,-677.49477,0.00066,30]
[343070228,1732323063166,-381.634995,0.00066,30]
[343070229,1732323063193,-405.62476846,0.00066,30]
[343070230,1732323063216,-2992.54694478,0.00066,30]
[343070231,1732323063237,-35590.62401352,0.00066,30]
[343070232,1732323063261,-685.822,0.00066,30]
[343070233,1732323063287,-310.3099995,0.00066,30]
[343070234,1732323063570,-6.91157396,0.00063707,120]
[343070235,1732323063592,-213.58302604,0.00063707,120]
[343070236,1732323063607,-463.86063394,0.00065753,120]
[343070237,1732323063625,-36.13936606,0.00065753,120]
[343070238,1732323063640,-500.0,0.00065753,120]
[343070239,1732323063655,-600.48961045,0.00065753,120]
[343070240,1732323063670,-500.0,0.00065753,120]
[343070241,1732323063685,-1352.65956915,0.00065756,60]
[343070242,1732323063701,-147.34043085,0.00065756,60]
[343070243,1732323063711,-500.0,0.00065773,2]
[343070244,1732323063720,-1500.0,0.00065824,60]
[343070245,1732323063730,-1500.0,0.00065865,60]
[343070246,1732323063739,-1217.97759793,0.00065882,60]
[343070247,1732323063751,-282.02240207,0.00065882,60]
[343070248,1732323063761,-1500.0,0.00065935,60]
[343070249,1732323063770,-1500.0,0.00065997,60]
[343070250,1732323063780,-2603.24794205,0.00066,30]
[343070251,1732323063791,-676.78570896,0.00066,30]
[343070252,1732323063802,-12832.49999988,0.00066,30]
[343070253,1732323063813,-501.91363577,0.00066,30]
[343070254,1732323063853,-6421.19999999,0.00066,30]
[343070255,1732323063865,-78637.55013015,0.00066,30]
[343070256,1732323064550,-150.0,0.00065727,30]
[343070257,1732323064561,-150.0,0.00065728,30]
[343070258,1732323064571,-150.0,0.00065729,30]
[343070259,1732323064582,-150.0,0.00065731,30]
[343070260,1732323064598,-150.0,0.00065732,30]
[343070261,1732323064609,-150.0,0.00065734,30]
[343070262,1732323064619,-150.0,0.00065735,30]
[343070263,1732323064631,-150.0,0.00065742,30]
[343070264,1732323064640,-150.0,0.0006575,30]
[343070265,1732323064651,-500.0,0.00065753,120]
[343070266,1732323064661,-500.0,0.00065753,120]
[343070267,1732323064672,-500.0,0.00065753,120]
[343070268,1732323064682,-500.0,0.00065753,120]
[343070269,1732323064692,-500.0,0.00065753,120]
[343070270,1732323064701,-500.0,0.00065753,120]
[343070271,1732323064711,-500.0,0.00065753,120]
[343070272,1732323064720,-500.0,0.00065753,120]
[343070273,1732323064731,-246.26,0.00065753,120]
[343070274,1732323064774,-150.0,0.00065726,30]
[343070275,1732323064785,-253.74,0.00065753,120]
[343070276,1732323064795,-500.0,0.00065753,120]
[343070277,1732323064805,-500.0,0.00065753,120]
[343070278,1732323064815,-500.0,0.00065753,120]
[343070279,1732323064824,-500.0,0.00065753,120]
[343070280,1732323064837,-500.0,0.00065753,120]
[343070281,1732323064847,-500.0,0.00065753,120]
[343070282,1732323064857,-500.0,0.00065753,120]
[343070283,1732323064867,-500.0,0.00065753,120]
[343070284,1732323064876,-150.0,0.00065757,60]
[343070285,1732323064886,-150.0,0.0006577,60]
[343070286,1732323064895,-150.0,0.00065771,60]
[343070287,1732323064905,-150.0,0.00065773,60]
[343070288,1732323064914,-150.0,0.00065779,60]
[343070289,1732323064923,-150.0,0.00065781,60]
[343070290,1732323064933,-150.0,0.00065782,60]
[343070291,1732323064942,-150.0,0.0006579,60]
[343070292,1732323064951,-150.0,0.0006579,60]
[343070293,1732323064960,-150.0,0.00065799,60]
[343070294,1732323064970,-150.0,0.000658,60]
[343070295,1732323064980,-500.0,0.00065801,120]
[343070296,1732323064989,-309.75,0.00065801,120]
[343070297,1732323064999,-150.0,0.00065814,60]
[343070298,1732323065008,-150.0,0.00065814,60]
[343070299,1732323065018,-150.0,0.00065825,60]
[343070300,1732323065028,-150.0,0.00065837,60]
[343070301,1732323065038,-150.0,0.00065841,60]
[343070302,1732323065048,-150.0,0.00065856,60]
[343070303,1732323065058,-47.48625,0.00065861,60]
[343070304,1732323065070,-102.51375,0.00065861,60]
[343070305,1732323065080,-150.0,0.00065862,60]
[343070306,1732323065091,-150.0,0.00065866,60]
[343070307,1732323065101,-150.0,0.00065872,60]
[343070308,1732323065111,-150.0,0.00065883,60]
[343070309,1732323065120,-94.98664743,0.0006589,60]
[343070310,1732323065140,-150.0,0.00065757,60]
[343070311,1732323065149,-150.0,0.00065801,60]
[343070312,1732323065159,-55.01335257,0.0006589,60]
[343070313,1732323065169,-150.0,0.000659,60]
[343070314,1732323065179,-150.0,0.00065901,60]
[343070315,1732323065188,-150.0,0.00065901,60]
[343070316,1732323065199,-150.0,0.00065903,60]
[343070317,1732323065211,-150.0,0.00065904,60]
[343070318,1732323065220,-150.0,0.00065905,60]
[343070319,1732323065230,-150.0,0.00065911,60]
[343070320,1732323065242,-150.0,0.00065918,60]
[343070321,1732323065252,-150.0,0.00065919,60]
[343070322,1732323065262,-150.0,0.00065921,60]
[343070323,1732323065271,-150.0,0.00065923,60]
[343070324,1732323065282,-150.0,0.00065929,60]
[343070325,1732323065292,-102.95510179,0.00065937,60]
[343070326,1732323065304,-47.04489821,0.00065937,60]
[343070327,1732323065313,-150.0,0.00065939,60]
[343070328,1732323065322,-150.0,0.0006594,60]
[343070329,1732323065334,-150.0,0.00065943,60]
[343070330,1732323065343,-150.0,0.00065943,60]
[343070331,1732323065353,-150.0,0.00065948,60]
[343070332,1732323065362,-150.0,0.00065958,60]
[343070333,1732323065371,-150.0,0.00065962,60]
[343070334,1732323065380,-150.0,0.00065971,60]
[343070335,1732323065390,-150.0,0.00065973,60]
[343070336,1732323065399,-150.0,0.00065975,60]
[343070337,1732323065408,-150.0,0.00065976,60]
[343070338,1732323065418,-150.0,0.0006599,60]
[343070339,1732323065427,-521.46518408,0.00065997,120]
[343070340,1732323065436,-500.0,0.00065997,120]
[343070341,1732323065445,-487.98991773,0.00065997,120]
[343070342,1732323065457,-13.45008227,0.00065997,120]
[343070343,1732323065466,-500.0,0.00065998,120]
[343070344,1732323065476,-500.0,0.00065998,120]
[343070345,1732323065485,-500.0,0.00065998,120]
[343070346,1732323065494,-500.0,0.00065998,120]
[343070347,1732323065504,-500.0,0.00065999,120]
[343070348,1732323065514,-373.46533676,0.00065999,120]
[343070349,1732323065524,-67615.02489031,0.00066,30]
[343070350,1732323065543,-150.0,0.00065821,60]
[343070351,1732323065552,-150.0,0.0006597,60]
[343070352,1732323065562,-33265.0,0.00066,30]
[343070353,1732323065573,-67171.95199739,0.00066,30]
[343070354,1732323065586,-5067.75789234,0.00066,30]
[343070355,1732323065596,-1344.38180673,0.00066,30]
[343070356,1732323065946,-150.0,0.00065752,30]
[343070357,1732323065955,-150.0,0.0006584,60]
[343070358,1732323065965,-150.0,0.00065852,60]
[343070359,1732323065975,-300.0,0.00065888,60]
[343070360,1732323065985,-150.0,0.000659,60]
[343070361,1732323065995,-150.0,0.00065939,60]
[343070362,1732323066005,-150.0,0.00065942,60]
[343070363,1732323066015,-150.0,0.00065948,60]
[343070364,1732323066024,-150.0,0.00065964,60]
[343070365,1732323066034,-5886.79977604,0.00066,30]
[343070366,1732323066045,-2204.9408,0.00066,30]
[343070367,1732323066068,-150.0,0.00065899,60]
[343070368,1732323066077,-150.0,0.00065908,60]
[343070369,1732323066091,-150.0,0.0006595,60]
[343070370,1732323066100,-69790.2153699,0.00066,30]
[343070371,1732323066111,-13285.7552974,0.00066,30]
[343070372,1732323066123,-53324.06301173,0.00066,30]
[343070373,1732323066135,-165501.93837334,0.00066,30]
[343070374,1732323066147,-38516.383,0.00066,30]
[343070375,1732323066158,-566.98888073,0.00066,30]
[343070376,1732323067145,255.5,0.00055,2]
[343070377,1732323192624,221.3402,0.00039888,7]
[343070378,1732323203601,153.88,0.00041096,2]
[343070379,1732323219198,500.0,0.00024932,2]
[343070380,1732323289004,2491.73538498,0.00052676,2]
[343070381,1732323454158,166.51,0.00041096,2]
[343070382,1732323454377,166.51,0.00053082,120]
[343070384,1732323460124,179030.65363895,0.00054,2]
[343070386,1732323624711,150980.59284076,0.00052885,30]
[343070387,1732323624814,29472.58244918,0.00052885,30]
[343070388,1732323945248,250.0,0.00031,2]
[343070389,1732323946333,300.0,0.00033,2]
[343070390,1732323947422,350.0,0.00035,2]
[343070391,1732323948519,400.0,0.00037,2]
[343070392,1732323949616,450.0,0.00039,2]
[343070393,1732323950659,200.43374611,0.00038805,2]
[343070394,1732323950703,500.0,0.00041,2]
[343070395,1732323951795,550.0,0.00043,2]
[343070396,1732323952873,600.0,0.00045,2]
[343070397,1732323953968,650.0,0.00047,2]
[343070398,1732323955060,700.0,0.00049,2]
[343070399,1732323956143,750.0,0.00051,2]
[343070400,1732323957217,800.0,0.00053,2]
[343070401,1732323958479,850.0,0.00055,2]
[343070402,1732323979092,153.88,0.00041096,2]
[343070403,1732324035542,180377.0,0.00055,120]
[343070404,1732324046123,-253.0,0.00055399,15]
[343070405,1732324046144,-150.0,0.00055699,9]
[343070406,1732324046165,-309.33855266,0.000559,2]
[343070407,1732324046186,-455.41788752,0.000559,27]
[343070408,1732324046208,-500.0,0.000559,20]
[343070409,1732324046228,-162.98886913,0.00055973,15]
[343070410,1732324046249,-500.0,0.00055973,2]
[343070411,1732324046270,-268.424441,0.00055999,120]
[343070412,1732324046293,-102.85383356,0.00055999,31]
[343070413,1732324109271,19996.0,0.00053793,30]
[343070414,1732324142522,3419.13320528,0.00052885,60]
[343070415,1732324145141,-291.223,0.000553,120]
[343070416,1732324145163,-8066.61184267,0.000559,15]
[343070417,1732324145184,-309.33855265,0.000559,2]
[343070418,1732324145207,-532.73996256,0.00055999,2]
[343070419,1732324145229,-520.74882481,0.00055999,31]
[343070420,1732324145252,-500.0,0.00055999,31]
[343070421,1732324145274,-333.97930669,0.00055999,31]
[343070422,1732324145294,-187.8971087,0.00055999,120]
[343070423,1732324145315,-22379.89634192,0.00056,2]
[343070424,1732324168158,-374.54679166,0.00055973,15]
[343070425,1732324168181,-264181.70600834,0.00056,2]
[343070435,1732324232209,-3713.84260342,0.000559,15]
[343070436,1732324232219,-72920.28076658,0.00056,2]
[343070437,1732324232235,-971.46734705,0.00056,2]
[343070438,1732324232283,-357288.10523611,0.00056,2]
[343070439,1732324232293,-329.6072,0.00056,2]
[343070440,1732324232303,-329.0,0.00056,2]
[343070441,1732324232312,-150.99,0.00056,2]
[343070442,1732324232322,-210.0,0.00056,2]
[343070443,1732324232331,-238.1919283,0.00056516,2]
[343070444,1732324232340,-152.0,0.00056555,3]
[343070445,1732324232351,-4441.53,0.00056599,7]
[343070446,1732324232361,-1477.7507,0.000568,2]
[343070447,1732324232370,-156.3025,0.00057,120]
[343070448,1732324232380,-500.0,0.00057,2]
[343070449,1732324232390,-500.0,0.00057,2]
[343070450,1732324232399,-500.0,0.00057,2]
[343070451,1732324232410,-500.0,0.00057,2]
[343070452,1732324232419,-500.0,0.00057,2]
[343070453,1732324232429,-303.83845208,0.00057,2]
[343070454,1732324232439,-900.0,0.00057,2]
[343070455,1732324232450,-500.0,0.00057173,7]
[343070456,1732324232460,-9999.99,0.00057449,2]
[343070457,1732324232470,-1896.1,0.00057449,2]
[343070458,1732324232479,-1277.4,0.00057449,2]
[343070459,1732324232490,-510.04959677,0.00057573,15]
[343070460,1732324232500,-151.5,0.0005769,120]
[343070461,1732324232509,-151.5,0.0005769,120]
[343070462,1732324232521,-151.5,0.0005769,120]
[343070463,1732324232530,-151.5,0.0005769,120]
[343070464,1732324232540,-151.5,0.0005769,120]
[343070465,1732324232550,-151.5,0.0005769,120]
[343070466,1732324232560,-460000.0,0.000577,2]
[343070467,1732324232570,-1000.0,0.00057721,7]
[343070468,1732324232579,-1100.0,0.000579,21]
[343070469,1732324232590,-572.38786172,0.00058,2]
[343070470,1732324232600,-165.88,0.0005819,2]
[343070471,1732324232609,-647.37615467,0.000582,30]
[343070472,1732324232618,-248.0,0.00058225,2]
[343070473,1732324232627,-150.0,0.00058294,120]
[343070474,1732324232637,-2083.2453,0.000583,2]
[343070475,1732324232646,-510.6427,0.000583,2]
[343070476,1732324232657,-500.0,0.00058455,2]
[343070477,1732324232668,-250.0,0.00058672,120]
[343070478,1732324232678,-1018.06561394,0.00058722,7]
[343070479,1732324232687,-2177.733,0.00058799,116]
[343070480,1732324232697,-227.7,0.00058799,116]
[343070481,1732324232707,-250.0,0.00058818,120]
[343070482,1732324232716,-1000.0,0.00058883,120]
[343070483,1732324232726,-200.0,0.00058908,30]
[343070484,1732324232735,-150.0,0.00058935,2]
[343070485,1732324232744,-950.0,0.00059,2]
[343070486,1732324232753,-205.45,0.00059097,120]
[343070487,1732324232763,-590.29,0.00059108,2]
[343070488,1732324232775,-156.3025,0.00059392,120]
[343070489,1732324232785,-153.22,0.000595,60]
[343070490,1732324232794,-153.22,0.000595,60]
[343070491,1732324232804,-153.22,0.000595,60]
[343070492,1732324232814,-153.22,0.000595,60]
[343070493,1732324232824,-153.22,0.000595,60]
[343070494,1732324232834,-153.22,0.000595,60]
[343070495,1732324232843,-428.36,0.00059532,30]
[343070496,1732324232853,-1277.4,0.00059713,2]
[343070497,1732324232863,-151.5,0.0005979,120]
[343070498,1732324232872,-151.5,0.0005979,120]
[343070499,1732324232882,-124704.69483143,0.000598,120]
[343070500,1732324232891,-150.0,0.00059852,120]
[343070501,1732324232901,-500.0,0.0006,30]
[343070502,1732324232911,-8066.61184261,0.00060567,15]
[343070503,1732324232921,-1000.0,0.00060618,120]
[343070504,1732324232931,-500.0,0.00060763,120]
[343070505,1732324232940,-1000.0,0.0006089,120]
[343070506,1732324232950,-1000.0,0.00061,2]
[343070507,1732324232960,-152.0,0.00061084,4]
[343070508,1732324232970,-150.0,0.00061409,120]
[343070509,1732324232981,-151.5,0.00061426,120]
[343070510,1732324232991,-23900.0,0.00061436,2]
[343070511,1732324233001,-500.0,0.00061456,2]
[343070512,1732324233014,-500.0,0.00061469,120]
[343070513,1732324233028,-200.0,0.00061617,2]
[343070514,1732324233038,-366.59,0.00061623,2]
[343070515,1732324233048,-1000.0,0.00061635,120]
[343070516,1732324233059,-500.0,0.00061703,120]
[343070517,1732324233069,-1277.4,0.00061976,2]
[343070518,1732324233079,-257.98412881,0.00062,120]
[343070519,1732324233089,-166.89,0.00062004,2]
[343070520,1732324233099,-590.29,0.00062063,2]
[343070521,1732324233109,-500.0,0.00062178,120]
[343070522,1732324233119,-500.0,0.00062252,120]
[343070523,1732324233129,-500.0,0.00062419,120]
[343070524,1732324233139,-500.0,0.0006263,120]
[343070525,1732324233148,-171.9,0.00062937,2]
[343070526,1732324233158,-500.0,0.00062954,120]
[343070527,1732324233167,-150.0,0.00062966,120]
[343070528,1732324233177,-1050.0,0.00063,2]
[343070529,1732324233187,-168.16,0.00063013,2]
[343070530,1732324233196,-2240.0,0.00063014,10]
[343070531,1732324233206,-220.47,0.00063016,120]
[343070532,1732324233216,-500.0,0.00063028,120]
[343070533,1732324233225,-1000.0,0.00063142,120]
[343070534,1732324233235,-11560.0,0.000632,120]
[343070535,1732324233245,-158.83,0.00063217,120]
[343070536,1732324233254,-250.0,0.00063281,120]
[343070537,1732324233265,-167.78,0.00063317,2]
[343070538,1732324233277,-289.54727256,0.0006336,30]
[343070539,1732324233288,-350.0,0.00063619,120]
[343070540,1732324233298,-500.0,0.00063653,120]
[343070541,1732324233308,-500.0,0.00063671,120]
[343070542,1732324233318,-500.0,0.00063889,120]
[343070543,1732324233328,-366.59,0.00063903,2]
[343070544,1732324233338,-715.33,0.00063925,120]
[343070545,1732324233348,-500.0,0.0006395,120]
[343070546,1732324233358,-1751.24,0.00064127,120]
[343070547,1732324233368,-3328.28,0.00064198,2]
[343070548,1732324233378,-151.5,0.0006423,120]
[343070549,1732324233388,-1277.4,0.0006424,2]
[343070550,1732324233398,-170.28,0.00064289,2]
[343070551,1732324233409,-220.47,0.00064386,120]
[343070552,1732324233418,-2500.0,0.00064408,12]
[343070553,1732324233428,-2500.0,0.00064408,12]
[343070554,1732324233438,-178.44,0.00064516,120]
[343070555,1732324233448,-150.0,0.00064523,120]
[343070556,1732324233459,-500.0,0.00064697,120]
[343070557,1732324233469,-500.0,0.00064806,120]
[343070558,1732324233480,-500.0,0.00064824,120]
[343070559,1732324233490,-491.1,0.00064841,60]
[343070560,1732324233501,-424.7,0.00064841,60]
[343070561,1732324233512,-150.0,0.00064978,60]
[343070562,1732324233525,-314.29,0.00064978,60]
[343070563,1732324233535,-1100.0,0.00065,2]
[343070564,1732324233545,-590.29,0.00065018,2]
[343070565,1732324233556,-268.18,0.0006503,2]
[343070566,1732324233566,-166.51,0.00065068,120]
[343070567,1732324233579,-1649.74648534,0.00065154,120]
[343070568,1732324233590,-162.04710066,0.00065156,120]
[343070569,1732324233599,-500.0,0.00065208,120]
[343070570,1732324233610,-171.43024678,0.00065224,120]
[343070571,1732324233634,-828.56975322,0.00065224,120]
[343070572,1732324233645,-171.33024678,0.00065233,15]
[343070573,1732324233659,-2128.39314484,0.00065233,15]
[343070574,1732324233676,-588.90327259,0.00065233,15]
[343070575,1732324235791,-5177.9851784,0.00065233,15]
[343070576,1732324235801,-325.95,0.00065568,60]
[343070577,1732324235810,-433.58,0.00065568,60]
[343070578,1732324235820,-433.58,0.00065568,60]
[343070579,1732324235829,-433.58,0.00065568,60]
[343070580,1732324235838,-421.93189669,0.00065602,120]
[343070581,1732324235847,-152.0,0.00065613,5]
[343070582,1732324235857,-150.0,0.00065735,30]
[343070583,1732324235867,-150.0,0.00065736,30]
[343070584,1732324235876,-151.5,0.00065741,120]
[343070585,1732324235886,-150.0,0.00065741,30]
[343070587,1732324235896,-150.0,0.00065742,30]
[343070589,1732324235906,-151.5,0.00065743,120]